bitfinex-derivatives/quotes_ETHF0:USTF0_20260305
["timestamp","ask_amount","ask_price","bid_price","bid_amount"]
[1772699666323,0.57403307,2104.8,2103.9,0.003554]
[1772699668734,0.57403307,2104.8,2103.9,0.58021711]
[1772699674653,0.55971336,2105.0,2103.9,0.58021711]
[1772699674850,0.55971336,2105.3,2104.1,0.57666311]
[1772699675152,2.67555698,2105.8,2104.5,0.57666311]
[1772699675153,0.55971336,2105.5,2104.5,0.57666311]
[1772699676753,0.55971336,2105.9,2104.7,0.57666311]
[1772699677157,0.55971336,2105.7,2104.9,0.57666311]
[1772699677755,0.55971336,2105.9,2104.9,0.57666311]
[1772699681657,0.55971336,2105.7,2104.7,0.57666311]
[1772699681959,0.55971336,2105.5,2104.7,0.57666311]
[1772699682558,0.55971336,2105.9,2104.7,0.57666311]
[1772699682759,3.90967625,2106.0,2104.7,0.57666311]
[1772699682760,0.55971336,2105.7,2104.7,0.57666311]
[1772699682954,0.55971336,2105.7,2104.8,0.57666311]
[1772699684462,0.55971336,2105.5,2104.8,0.57666311]
[1772699684958,0.55971336,2105.7,2104.8,0.57666311]
[1772699688457,0.55971336,2105.9,2104.8,0.57666311]
[1772699688664,5.85228711,2105.8,2104.8,0.57666311]
[1772699688864,0.55971336,2105.8,2104.8,0.57666311]
[1772699689256,0.00588802,2106.0,2105.0,0.5544072]
[1772699689461,0.00588802,2106.0,2105.2,0.5544072]
[1772699690063,0.00588802,2106.0,2105.4,0.5544072]
[1772699690266,0.00588802,2106.0,2105.4,0.55801179]
[1772699691167,0.59150047,2106.0,2105.4,0.55801179]
[1772699691379,0.59150047,2106.0,2105.4,0.00360459]
[1772699692966,0.59150047,2106.0,2105.4,0.55801179]
[1772699693367,0.00588802,2106.0,2105.4,0.55801179]
[1772699698575,0.59150047,2106.0,2105.4,0.00360459]
[1772699700474,0.59150047,2106.0,2104.7,0.23752]
[1772699700475,0.59150047,2106.0,2105.1,0.5544072]
[1772699700675,0.58561245,2105.8,2105.1,0.5544072]
[1772699700977,0.00588802,2106.0,2105.2,0.5544072]
[1772699701570,0.00588802,2106.0,2105.2,0.55904436]
[1772699702977,0.58561245,2106.5,2105.6,0.5544072]
[1772699703280,0.58561245,2106.5,2105.2,0.00463716]
[1772699703281,0.58561245,2106.7,2105.8,0.5544072]
[1772699703780,10.28678823,2107.0,2105.3,0.5544072]
[1772699703781,0.58561245,2106.5,2105.3,0.5544072]
[1772699704080,0.58561245,2106.3,2105.3,0.5544072]
[1772699706180,0.58926998,2106.5,2105.5,0.5544072]
[1772699706377,5.8866841,2106.4,2105.5,0.5544072]
[1772699706578,0.58561245,2106.4,2105.5,0.5544072]
[1772699713181,0.00365753,2106.5,2105.3,0.5544072]
[1772699713182,0.58561245,2106.2,2105.3,0.5544072]
[1772699716382,0.58561245,2106.4,2105.4,0.5544072]
[1772699716586,5.77457831,2106.3,2105.4,0.5544072]
[1772699716790,5.32375149,2106.3,2105.4,0.5544072]
[1772699717086,5.90936394,2106.3,2105.4,0.5544072]
[1772699717394,5.90936394,2106.2,2105.4,0.5544072]
[1772699717579,0.58561245,2106.2,2105.4,0.5544072]
[1772699721295,0.59902549,2106.4,2105.6,0.54878803]
[1772699721494,6.381055,2106.3,2105.6,0.54878803]
[1772699721795,5.33056878,2106.2,2105.6,0.54878803]
[1772699722295,0.59902549,2106.4,2105.6,0.54878803]
[1772699722495,5.782349,2106.3,2105.6,0.54878803]
[1772699722696,5.33085921,2106.3,2105.8,0.54878803]
[1772699722893,0.60268302,2106.5,2105.8,0.54878803]
[1772699723093,5.33136927,2106.4,2105.8,0.54878803]
[1772699723396,0.60268302,2106.5,2105.8,0.54878803]
[1772699723896,0.00365753,2106.5,2105.8,0.54878803]
[1772699724287,5.33176223,2106.5,2105.8,0.54878803]
[1772699724495,0.00365753,2106.5,2105.8,0.54878803]
[1772699724689,0.00365753,2106.5,2106.0,0.54878803]
[1772699725698,0.00365753,2106.5,2105.4,6.223]
[1772699725699,0.59902549,2106.7,2106.2,0.54878803]
[1772699725897,0.59902549,2107.1,2106.2,0.54878803]
[1772699726093,0.59902549,2106.9,2106.2,0.54878803]
[1772699726692,0.60379293,2106.9,2106.2,0.54878803]
[1772699727187,0.00476744,2106.9,2106.2,0.54878803]
[1772699727391,0.55760859,2106.9,2106.2,0.54878803]
[1772699728095,0.45166478,2106.8,2105.7,0.55082066]
[1772699728288,0.55284115,2106.7,2105.7,0.55082066]
[1772699728895,0.55284115,2106.7,2105.9,0.55082066]
[1772699730092,7.44e-06,2106.9,2106.5,0.55082066]
[1772699730293,0.55284115,2107.2,2106.5,0.55082066]
[1772699730589,0.55284115,2107.2,2106.0,0.55082066]
[1772699730794,0.55284115,2107.2,2106.2,0.55082066]
[1772699731189,0.55645867,2107.2,2106.4,0.55082066]
[1772699734100,0.00361752,2107.2,2106.4,0.55082066]
[1772699735599,0.55645867,2107.2,2106.4,0.55082066]
[1772699740400,0.55645867,2107.2,2105.9,0.55082066]
[1772699743006,0.55284115,2107.0,2105.9,0.55082066]
[1772699743405,0.55284115,2107.0,2105.5,0.55082066]
[1772699743406,0.55284115,2106.8,2105.5,0.55082066]
[1772699743602,0.55284115,2106.6,2105.5,0.55082066]
[1772699743908,0.55284115,2106.6,2105.2,0.00463716]
[1772699743909,0.55284115,2106.2,2105.2,0.00463716]
[1772699744207,0.55284115,2106.0,2105.2,0.00463716]
[1772699745205,0.55284115,2106.0,2104.7,0.55082066]
[1772699745712,0.55284115,2105.8,2104.7,0.55082066]
[1772699746107,0.55284115,2105.8,2104.7,0.55463448]
[1772699747010,0.55284115,2105.8,2104.7,0.00381382]
[1772699747416,0.45219272,2105.7,2104.7,0.00381382]
[1772699747717,0.55284115,2105.6,2104.7,0.00381382]
[1772699748012,0.55284115,2105.4,2104.7,0.00381382]
[1772699750218,0.55284115,2105.4,2104.7,0.54412444]
[1772699751112,6.95086264,2105.6,2104.7,0.54412444]
[1772699751313,0.59086264,2105.6,2104.7,0.54412444]
[1772699753311,0.59086264,2105.6,2104.7,0.00381382]
[1772699754915,0.59086264,2105.6,2104.3,0.77788062]
[1772699755117,0.59086264,2105.6,2104.4,0.54031062]
[1772699756019,0.59086264,2105.6,2104.4,0.54368445]
[1772699757315,0.59086264,2105.4,2104.4,0.54368445]
[1772699759416,0.59086264,2105.3,2104.4,0.54368445]
[1772699760214,0.59086264,2105.3,2104.6,0.54031062]
[1772699763323,0.59086264,2105.3,2104.4,0.00337383]
[1772699770121,0.45212416,2105.2,2104.4,0.00337383]
[1772699770426,0.59086264,2105.1,2104.4,0.00337383]
[1772699770626,0.59086264,2104.9,2104.4,0.00337383]
[1772699772124,0.59086264,2104.9,2104.1,0.54031062]
[1772699773126,0.45416494,2104.8,2104.1,0.54376276]
[1772699773328,0.59086264,2104.7,2104.1,0.54376276]
[1772699775428,0.59086264,2104.7,2104.1,0.00345214]
[1772699775824,0.59086264,2104.7,2104.1,0.54376276]
[1772699776832,6.95586264,2104.7,2104.1,0.54376276]
[1772699777624,0.59086264,2104.6,2104.1,0.54376276]
[1772699779028,0.51701089,2104.8,2104.1,0.54376276]
[1772699781827,0.51701089,2105.0,2104.3,0.51791077]
[1772699782023,6.89501089,2105.0,2104.3,0.51791077]
[1772699786034,0.51701089,2104.8,2104.3,0.51791077]
[1772699787135,6.378,2105.0,2104.3,0.51791077]
[1772699787338,1.01146841,2104.9,2104.3,0.51791077]
[1772699787531,3.90378823,2105.2,2104.6,0.23753]
[1772699787731,6.41976022,2105.4,2104.7,0.53826112]
[1772699787732,4.46076643,2105.4,2104.7,0.53826112]
[1772699787932,12.25978202,2105.6,2104.7,0.53826112]
[1772699787933,1.0114622,2105.3,2104.7,0.53826112]
[1772699788131,0.5569782,2105.3,2104.7,0.53826112]
[1772699790340,4.46526242,2105.7,2104.8,0.23751]
[1772699790538,0.56147419,2105.7,2104.9,0.53826112]
[1772699791336,6.9689782,2105.6,2104.9,0.53826112]
[1772699792533,0.5569782,2105.6,2104.9,0.53826112]
[1772699792739,6.42249599,2105.7,2104.9,0.53826112]
[1772699793338,0.00449599,2105.7,2105.1,0.53826112]
[1772699794632,5.79151276,2105.8,2105.3,0.53826112]
[1772699794932,6.9839782,2106.2,2105.5,0.53826112]
[1772699795736,6.43148218,2106.2,2105.5,0.53826112]
[1772699796435,0.5569782,2106.5,2105.7,0.53826112]
[1772699797133,0.5569782,2106.5,2105.6,0.23742]
[1772699797134,0.5569782,2106.6,2105.9,0.53826112]
[1772699797331,6.434,2106.9,2106.1,0.53826112]
[1772699797541,0.5569782,2106.8,2106.1,0.54282769]
[1772699799134,0.00472213,2106.9,2106.1,0.54282769]
[1772699803150,0.5569782,2107.3,2106.3,0.53826112]
[1772699804050,0.56050432,2107.3,2106.3,0.53826112]
[1772699805545,0.5569782,2107.2,2106.1,0.54282769]
[1772699805750,0.5569782,2107.2,2106.1,0.00456657]
[1772699806656,0.5569782,2106.9,2106.1,0.00456657]
[1772699806948,0.5569782,2106.7,2106.1,0.00456657]
[1772699807554,0.5569782,2106.7,2105.8,0.53826112]
[1772699807758,0.5569782,2106.7,2105.6,0.23742]
[1772699808055,0.5569782,2106.7,2105.7,0.53826112]
[1772699808453,0.5569782,2106.7,2105.7,0.54248657]
[1772699808655,0.55430378,2106.7,2105.7,0.54248657]
[1772699812444,0.55430378,2106.6,2105.7,0.54248657]
[1772699813151,0.55430378,2106.6,2105.9,0.52872834]
[1772699818157,6.445,2106.7,2105.9,0.52872834]
[1772699818352,6.99930378,2106.7,2105.9,0.52872834]
[1772699819156,0.55430378,2106.6,2105.9,0.52872834]
[1772699819361,0.55430378,2106.6,2105.7,0.53295379]
[1772699820660,0.45478457,2106.5,2105.7,0.00422545]
[1772699820864,0.55430378,2106.3,2105.0,0.52872834]
[1772699821066,0.55430378,2106.3,2105.2,0.52872834]
[1772699821862,0.55430378,2106.3,2105.4,0.52872834]
[1772699822159,0.55430378,2106.5,2105.6,0.52872834]
[1772699824869,0.55430378,2106.3,2105.6,0.52872834]
[1772699825166,0.55430378,2106.3,2105.5,0.52872834]
[1772699825463,7.00230378,2106.3,2105.5,0.52872834]
[1772699825658,0.55430378,2106.2,2105.5,0.52872834]
[1772699828065,0.55430378,2106.0,2105.3,0.52872834]
[1772699828463,0.55430378,2105.8,2105.2,0.0050172]
[1772699828763,0.55430378,2105.6,2105.2,0.0050172]
[1772699828962,0.55430378,2105.6,2104.7,0.52872834]
[1772699829864,0.55430378,2105.6,2104.7,0.53484403]
[1772699832665,0.55430378,2105.4,2104.7,0.53484403]
[1772699833773,0.55430378,2105.4,2104.7,0.00611569]
[1772699834772,0.55430378,2105.4,2104.4,0.52872834]
[1772699835072,0.55430378,2105.2,2104.4,0.52872834]
[1772699835674,0.55430378,2105.2,2104.4,0.53418344]
[1772699836674,0.55430378,2105.2,2104.4,0.0054551]
[1772699838268,0.55430378,2105.2,2103.6,0.52872834]
[1772699838269,0.55430378,2105.1,2103.6,0.52872834]
[1772699838472,0.55430378,2104.9,2103.6,0.52872834]
[1772699838672,0.55430378,2104.7,2103.6,0.52872834]
[1772699839377,0.55430378,2104.7,2103.6,0.53274217]
[1772699841974,0.55430378,2104.7,2103.6,0.00401383]
[1772699842181,0.59018893,2104.5,2103.6,0.00401383]
[1772699842377,0.59018893,2104.5,2103.6,0.57978993]
[1772699842784,0.59018893,2104.5,2103.6,0.00401383]
[1772699843985,0.59018893,2104.5,2103.3,0.5757761]
[1772699844880,0.59018893,2104.5,2103.3,0.58074623]
[1772699846177,0.59018893,2104.5,2103.5,0.5757761]
[1772699846384,0.59018893,2104.4,2103.5,0.5757761]
[1772699846582,6.471,2104.5,2103.5,0.5757761]
[1772699846786,7.06118893,2104.5,2103.5,0.5757761]
[1772699847184,0.55037108,2104.4,2103.5,0.5757761]
[1772699851391,0.55037108,2104.4,2103.7,0.53983858]
[1772699851590,0.55037108,2104.5,2103.7,0.53983858]
[1772699853785,0.55037108,2104.8,2103.9,0.53983858]
[1772699853985,0.55037108,2104.9,2104.3,0.53983858]
[1772699854189,0.55037108,2105.1,2104.3,0.53983858]
[1772699854585,0.55037108,2105.3,2104.5,0.53983858]
[1772699854989,0.55037108,2105.7,2104.7,0.53983858]
[1772699856295,0.00434881,2105.8,2104.9,0.53983858]
[1772699856488,0.55471989,2105.8,2104.9,0.54400698]
[1772699859198,0.55471989,2105.8,2104.9,0.0041684]
[1772699859993,0.55471989,2105.8,2104.9,0.54400698]
[1772699860197,0.55037108,2105.7,2104.9,0.54400698]
[1772699860797,0.55037108,2105.7,2104.9,0.0041684]
[1772699861195,0.55037108,2105.7,2104.9,0.54400698]
[1772699862500,0.00434881,2105.8,2104.9,0.54400698]
[1772699862897,0.55471989,2105.8,2104.9,0.54400698]
[1772699864294,0.00434881,2105.8,2105.1,0.53983858]
[1772699864691,0.55037108,2106.2,2105.1,0.53983858]
[1772699865590,0.55626566,2106.2,2105.3,0.53983858]
[1772699869302,0.55626566,2106.2,2105.5,0.56384874]
[1772699869303,0.54690233,2106.2,2105.5,0.56384874]
[1772699870605,0.54690233,2106.2,2105.4,0.80128874]
[1772699872306,0.54690233,2106.2,2105.5,0.56384874]
[1772699873007,0.00589458,2106.2,2105.5,0.56384874]
[1772699875702,0.00589458,2106.2,2105.6,0.23742]
[1772699875903,0.00589458,2106.2,2105.7,0.56384874]
[1772699876098,0.54690233,2106.2,2105.7,0.56384874]
[1772699877108,0.54690233,2106.2,2105.2,0.56384874]
[1772699877704,0.54690233,2106.2,2105.4,0.56384874]
[1772699878211,0.00589458,2106.2,2105.4,0.56384874]
[1772699878407,0.54690233,2106.2,2105.4,0.56384874]
[1772699880808,0.54690233,2106.2,2105.0,0.56384874]
[1772699881506,0.54100775,2106.0,2105.0,0.56384874]
[1772699882215,0.54100775,2105.8,2104.9,0.0041684]
[1772699882408,0.54100775,2105.8,2104.9,0.56801714]
[1772699884111,0.54100775,2105.6,2104.9,0.56801714]
[1772699885210,0.54100775,2105.6,2104.9,0.0041684]
[1772699885717,0.54100775,2105.4,2104.5,0.56384874]
[1772699885917,0.54100775,2105.4,2104.3,0.23756]
[1772699885918,0.54100775,2105.2,2104.3,0.80140874]
[1772699886512,0.54100775,2105.2,2104.3,0.5697009]
[1772699888518,0.54100775,2105.0,2104.3,0.00585216]
[1772699889512,0.54100775,2104.8,2103.7,0.56384874]
[1772699889723,0.54100775,2104.6,2103.7,0.56384874]
[1772699890523,0.54466602,2104.6,2103.7,0.56966958]
[1772699893824,0.54466602,2104.6,2103.7,0.00582084]
[1772699894018,0.54466602,2104.6,2103.7,0.56966958]
[1772699896021,0.00365827,2104.6,2103.8,0.56384874]
[1772699896215,0.00365827,2104.6,2104.0,0.56384874]
[1772699896417,0.54100775,2104.9,2104.0,0.56384874]
[1772699896616,6.96300775,2105.1,2104.2,0.56384874]
[1772699896822,0.54100775,2105.0,2104.2,0.56384874]
[1772699897423,0.54586011,2105.0,2104.2,0.56384874]
[1772699898422,0.00485236,2105.0,2104.2,0.56384874]
[1772699899430,0.00485236,2105.0,2104.4,0.57836261]
[1772699901629,0.57244538,2105.0,2104.4,0.57836261]
[1772699902037,0.00485236,2105.0,2104.4,0.57836261]
[1772699902530,6.423,2105.5,2104.4,0.57836261]
[1772699902531,0.56759302,2105.5,2104.4,0.57836261]
[1772699903039,0.56759302,2105.7,2104.8,0.57836261]
[1772699903530,0.57368841,2105.7,2104.8,0.57836261]
[1772699907636,0.00609539,2105.7,2105.0,0.5718654]
[1772699908331,3.95006575,2106.4,2105.2,0.5718654]
[1772699908332,0.59845061,2106.3,2105.2,0.5718654]
[1772699908531,0.59845061,2106.1,2105.2,0.5718654]
[1772699908927,0.59845061,2106.1,2104.6,0.23753]
[1772699909133,0.45591396,2106.0,2104.7,0.5718654]
[1772699909334,0.45591396,2106.0,2104.7,0.57734281]
[1772699909335,0.59845061,2105.8,2104.7,0.57734281]
[1772699910237,0.59845061,2105.8,2104.9,0.5718654]
[1772699910638,0.59845061,2105.8,2105.0,0.23749]
[1772699910841,0.59845061,2105.8,2105.1,0.5718654]
[1772699911539,0.60232713,2106.0,2105.1,0.5718654]
[1772699912535,0.60232713,2106.0,2105.0,0.23749]
[1772699912536,0.60232713,2106.0,2105.0,0.8093554]
[1772699912937,0.59845061,2105.8,2105.0,0.8093554]
[1772699913135,0.59845061,2105.8,2105.1,0.5718654]
[1772699913530,0.60232713,2106.0,2105.1,0.5718654]
[1772699918343,0.60232713,2106.0,2104.9,0.5718654]
[1772699918739,0.59845061,2105.8,2104.7,0.57734281]
[1772699918939,0.59845061,2105.6,2104.5,0.23754]
[1772699919142,0.59845061,2105.4,2104.6,0.5718654]
[1772699919948,0.59845061,2105.4,2104.6,0.57622578]
[1772699922046,0.59845061,2105.4,2104.6,0.00436038]
[1772699923641,3.95965915,2105.5,2104.6,0.00436038]
[1772699923642,0.59845061,2105.2,2104.6,0.00436038]
[1772699923842,0.59845061,2105.2,2104.6,0.57622578]
[1772699925442,0.59845061,2105.4,2104.6,0.57622578]
[1772699926248,0.59845061,2105.2,2104.6,0.57622578]
[1772699928841,0.59845061,2105.2,2104.6,0.00436038]
[1772699929843,0.59845061,2105.2,2104.6,0.59154109]
[1772699930042,0.59845061,2105.2,2104.2,0.58718071]
[1772699930243,0.58573878,2105.0,2104.2,0.58718071]
[1772699930444,0.58573878,2104.8,2104.2,0.58718071]
[1772699931145,0.58573878,2104.8,2104.2,0.59168094]
[1772699932442,0.58573878,2105.1,2104.4,0.58718071]
[1772699933743,0.58573878,2105.4,2104.4,0.58718071]
[1772699938550,0.58573878,2105.4,2104.6,0.58718071]
[1772699938755,7.02073878,2105.5,2104.6,0.58718071]
[1772699939351,0.58573878,2105.7,2104.8,0.58718071]
[1772699940056,0.45716997,2105.6,2104.8,0.58718071]
[1772699940258,0.58573878,2105.5,2104.8,0.58718071]
[1772699941156,0.58573878,2105.7,2104.8,0.58718071]
[1772699941548,0.58573878,2105.7,2104.7,0.23752]
[1772699941749,0.58573878,2105.5,2104.8,0.58718071]
[1772699945458,10.42437434,2105.8,2104.3,0.58718071]
[1772699945459,0.58573878,2105.3,2104.3,0.58718071]
[1772699946155,0.58573878,2105.3,2104.5,0.58718071]
[1772699946954,0.58573878,2105.3,2104.7,0.58718071]
[1772699950460,0.4580715,2105.2,2104.3,0.58718071]
[1772699950660,0.58573878,2105.0,2104.3,0.58718071]
[1772699952462,0.58573878,2104.8,2104.2,0.59168094]
[1772699952858,6.473,2104.9,2104.2,0.59168094]
[1772699953964,7.05873878,2104.9,2104.2,0.59168094]
[1772699954968,0.58573878,2104.8,2104.2,0.59168094]
[1772699955868,6.473,2104.9,2104.2,0.59168094]
[1772699956765,0.58573878,2105.0,2104.2,0.59168094]
[1772699957567,7.06873878,2105.2,2104.2,0.59168094]
[1772699957963,0.58573878,2105.1,2104.2,0.59168094]
[1772699961070,0.58573878,2105.1,2104.4,0.56379558]
[1772699962570,0.58573878,2105.1,2104.3,0.23757]
[1772699962960,0.59463905,2104.9,2104.3,0.23757]
[1772699963164,0.59463905,2104.9,2104.3,0.80136558]
[1772699963570,0.59463905,2104.9,2104.4,0.56379558]
[1772699965473,0.59463905,2105.3,2104.6,0.56379558]
[1772699965675,0.45818933,2105.2,2104.6,0.56379558]
[1772699965972,0.59463905,2105.3,2104.6,0.56379558]
[1772699969268,0.45816902,2105.2,2104.6,0.56379558]
[1772699969566,0.59463905,2105.3,2104.6,0.56379558]
[1772699971275,0.45824586,2105.2,2104.6,0.56379558]
[1772699971472,0.59463905,2105.3,2104.6,0.56379558]
[1772699971673,1.00112629,2105.2,2104.6,0.56379558]
[1772699971975,0.54288043,2105.2,2104.6,0.56379558]
[1772699972367,0.54288043,2105.3,2104.6,0.56379558]
[1772699972674,0.54288043,2105.1,2104.6,0.56379558]
[1772699973670,0.54288043,2105.1,2104.3,0.5829742]
[1772699974077,0.54288043,2104.9,2104.3,0.5829742]
[1772699975472,0.54288043,2104.9,2104.2,0.58747443]
[1772699979577,0.54288043,2104.9,2104.2,0.00450023]
[1772699979781,0.54288043,2104.7,2104.2,0.00450023]
[1772699980779,0.54288043,2104.7,2104.0,0.23759]
[1772699980973,0.54288043,2104.7,2104.0,0.8205642]
[1772699981780,0.54288043,2104.7,2104.0,0.82445759]
[1772699981978,0.54288043,2104.7,2104.1,0.5829742]
[1772699983381,0.54288043,2104.7,2104.0,0.58686759]
[1772699983582,0.54288043,2104.7,2104.0,0.00389339]
[1772699983973,0.54288043,2104.7,2104.0,0.58686759]
[1772699989193,0.54288043,2104.7,2104.0,0.00389339]
[1772699989384,0.5532739,2104.5,2104.0,0.00389339]
[1772699989684,0.55826402,2104.5,2104.0,0.00389339]
[1772699991179,0.55826402,2104.5,2104.0,0.57187025]
[1772699996789,0.00499012,2104.5,2104.0,0.57187025]
[1772699996989,0.55826402,2104.5,2104.0,0.57187025]
[1772699997590,0.55826402,2104.5,2104.0,0.00389339]
[1772699997790,0.55826402,2104.5,2103.3,6.14593831]
[1772699997791,0.55826402,2104.5,2103.7,0.56797686]
[1772699998492,0.5532739,2104.3,2103.7,0.56797686]
[1772699998693,0.5532739,2104.3,2103.7,0.57145491]
[1772700000895,6.61,2104.4,2103.7,0.80908491]
[1772700001089,0.5532739,2104.3,2103.7,0.00347805]
[1772700001289,0.5532739,2104.3,2103.4,0.56797686]
[1772700001495,0.5532739,2104.1,2103.2,0.56797686]
[1772700001696,0.5532739,2103.9,2103.1,0.56797686]
[1772700001897,0.5532739,2103.8,2103.1,0.56797686]
[1772700003900,0.5532739,2103.8,2102.7,0.56797686]
[1772700005003,0.5532739,2103.6,2102.7,0.56797686]
[1772700006408,0.5532739,2103.6,2102.2,6.14606831]
[1772700006409,0.5532739,2103.6,2102.3,0.56797686]
[1772700007006,0.5532739,2103.4,2102.3,0.56797686]
[1772700007203,0.5532739,2103.2,2102.3,0.56797686]
[1772700008404,0.5532739,2103.2,2102.2,0.2378]
[1772700008610,0.5532739,2103.2,2102.1,0.56797686]
[1772700009606,0.5532739,2103.0,2102.1,0.56797686]
[1772700009807,0.55721749,2103.0,2102.1,0.56797686]
[1772700011515,0.55721749,2103.0,2101.8,0.56797686]
[1772700011916,0.55721749,2103.0,2102.0,0.56797686]
[1772700013512,0.5532739,2102.8,2102.0,0.56797686]
[1772700015111,0.5532739,2102.8,2101.9,0.23784]
[1772700015317,0.5532739,2102.8,2101.8,0.56797686]
[1772700015709,6.639,2102.9,2101.0,0.56797686]
[1772700015710,0.5532739,2102.6,2101.0,0.56797686]
[1772700016312,0.5532739,2102.3,2101.0,0.56797686]
[1772700016514,0.5532739,2102.1,2101.0,0.56797686]
[1772700018421,0.5532739,2102.1,2101.2,0.56797686]
[1772700023520,0.5532739,2102.1,2101.0,0.59342352]
[1772700023718,0.5532739,2102.1,2100.6,0.59342352]
[1772700023918,0.58628847,2102.0,2100.6,0.59342352]
[1772700025719,0.58628847,2101.8,2100.6,0.59342352]
[1772700027122,0.54195557,2101.6,2100.6,0.59342352]
[1772700028526,0.54195557,2101.4,2100.4,0.55545922]
[1772700028726,0.54561288,2101.4,2100.4,0.55545922]
[1772700033724,0.00365731,2101.4,2100.6,0.55545922]
[1772700035331,0.54561288,2101.4,2100.6,0.55545922]
[1772700037426,0.54561288,2101.4,2100.1,0.55545922]
[1772700037627,0.54195557,2101.1,2100.0,0.00581624]
[1772700037832,2.68808128,2101.2,2100.0,0.00581624]
[1772700037833,3.23003685,2100.9,2100.0,0.00581624]
[1772700038026,0.54195557,2100.8,2100.0,0.00581624]
[1772700039130,0.54195557,2100.8,2099.5,0.79356922]
[1772700039332,5.31348771,2100.7,2099.6,0.55545922]
[1772700039634,0.54195557,2100.6,2099.6,0.55545922]
[1772700041628,0.54195557,2100.4,2099.1,0.55545922]
[1772700041826,6.6421118,2100.9,2099.1,0.55545922]
[1772700041827,0.54195557,2100.2,2099.1,0.55545922]
[1772700042430,6.623,2100.3,2099.3,0.55545922]
[1772700042731,6.623,2100.3,2099.5,0.55545922]
[1772700042926,0.54195557,2100.4,2099.5,0.55545922]
[1772700043134,0.54195557,2100.6,2099.7,0.55545922]
[1772700046531,3.95403052,2101.2,2100.1,0.55545922]
[1772700046833,3.95403052,2101.2,2098.9,8.65188676]
[1772700046834,0.54195557,2101.0,2100.3,0.55545922]
[1772700047836,0.54195557,2101.2,2100.3,0.55545922]
[1772700050632,0.54195557,2101.2,2100.5,0.59168694]
[1772700050929,0.00365731,2101.4,2100.7,0.59168694]
[1772700051928,0.57281605,2101.8,2100.9,0.59168694]
[1772700052232,3.95403052,2102.0,2099.9,7.30887529]
[1772700052233,0.57281605,2102.0,2101.1,0.59168694]
[1772700052533,0.57281605,2102.0,2101.2,0.23792]
[1772700052734,7.18881605,2102.2,2101.3,0.59168694]
[1772700052930,0.00581056,2102.2,2101.5,0.59168694]
[1772700053434,12.47778202,2102.8,2101.5,0.59168694]
[1772700053435,0.57281605,2102.6,2101.5,0.59168694]
[1772700053939,0.57281605,2102.6,2101.7,0.59168694]
[1772700054536,0.57665628,2102.6,2101.7,0.59168694]
[1772700055334,0.00384023,2102.6,2101.7,0.59168694]
[1772700055530,0.57281605,2102.5,2101.7,0.59168694]
[1772700056328,0.00384023,2102.6,2101.7,0.59168694]
[1772700056532,0.00384023,2102.6,2101.3,0.00371773]
[1772700056533,0.00384023,2102.6,2101.9,0.59168694]
[1772700057433,0.57665628,2102.6,2101.7,0.59168694]
[1772700058836,0.00384023,2102.6,2101.7,0.59168694]
[1772700059736,0.57665628,2102.6,2101.7,0.59168694]
[1772700061536,0.57665628,2102.6,2101.3,0.00371773]
[1772700061537,0.57665628,2102.6,2101.5,0.59168694]
[1772700066640,0.00384023,2102.6,2101.9,0.59168694]
[1772700067138,0.57665628,2102.6,2101.9,0.59168694]
[1772700069239,0.00384023,2102.6,2101.9,0.59168694]
[1772700072248,0.57665628,2102.6,2101.9,0.59168694]
[1772700075247,0.00384023,2102.6,2101.9,0.59168694]
[1772700075649,0.57665628,2102.6,2101.7,0.59168694]
[1772700075853,0.57665628,2102.6,2101.3,0.24161773]
[1772700076052,0.57665628,2102.6,2101.4,0.59168694]
[1772700076547,0.57665628,2102.6,2101.6,0.59168694]
[1772700076847,0.57665628,2102.6,2101.8,0.59168694]
[1772700079457,0.00384023,2102.6,2102.0,0.56329036]
[1772700080553,0.56891141,2103.1,2102.2,0.56329036]
[1772700081259,0.45841245,2103.0,2102.2,0.56329036]
[1772700081460,0.56891141,2103.1,2102.2,0.56329036]
[1772700081758,0.57461017,2103.1,2102.2,0.56329036]
[1772700083854,0.00569876,2103.1,2102.4,0.56329036]
[1772700084059,0.57461017,2103.1,2102.4,0.56329036]
[1772700085155,0.57461017,2103.1,2101.9,0.56329036]
[1772700085360,0.56891141,2103.0,2101.9,0.56329036]
[1772700086765,0.56891141,2103.0,2102.3,0.58179552]
[1772700086962,0.00569876,2103.1,2102.5,0.58179552]
[1772700087166,0.59428932,2103.1,2102.5,0.58179552]
[1772700088066,0.00569876,2103.1,2102.5,0.58179552]
[1772700089564,0.59428932,2103.1,2102.5,0.58179552]
[1772700089961,0.00569876,2103.1,2102.5,0.58179552]
[1772700091759,0.59428932,2103.1,2102.5,0.58179552]
[1772700092072,0.00569876,2103.1,2102.5,0.58179552]
[1772700092267,0.58859056,2103.5,2102.7,0.58179552]
[1772700093270,0.5935355,2103.5,2102.7,0.58179552]
[1772700094076,0.5935355,2103.5,2102.9,0.58179552]
[1772700094372,0.5935355,2103.5,2102.9,0.58765896]
[1772700094971,0.5935355,2103.5,2102.9,0.00586344]
[1772700095277,0.5935355,2103.5,2102.5,0.58179552]
[1772700095677,0.4541788,2103.4,2102.5,0.58179552]
[1772700095974,0.5935355,2103.5,2102.5,0.58179552]
[1772700096276,0.58859056,2103.3,2102.5,0.58798336]
[1772700099376,0.58859056,2103.1,2102.5,0.00618784]
[1772700099580,0.58859056,2103.1,2102.5,0.58798336]
[1772700101678,0.58859056,2103.3,2102.5,0.58798336]
[1772700104884,7.18359056,2103.4,2102.5,0.58798336]
[1772700105783,0.58859056,2103.3,2102.5,0.58798336]
[1772700107484,6.595,2103.4,2102.7,0.58179552]
[1772700107886,0.5935355,2103.5,2102.7,0.58179552]
[1772700110387,0.5935355,2103.5,2102.9,0.58629097]
[1772700110582,0.00494494,2103.5,2102.9,0.58629097]
[1772700112681,0.59042994,2103.5,2102.9,0.58629097]
[1772700112882,0.59042994,2103.5,2102.7,0.58629097]
[1772700113987,0.00494494,2103.5,2102.8,0.58629097]
[1772700116083,0.585485,2103.8,2103.2,0.58629097]
[1772700116387,0.585485,2104.0,2103.2,0.58629097]
[1772700116988,0.00351518,2104.0,2103.2,0.58629097]
[1772700117189,0.58900018,2104.0,2103.2,0.58629097]
[1772700123993,0.585485,2103.8,2102.9,0.58629097]
[1772700127994,0.585485,2103.6,2102.9,0.58629097]
[1772700129798,0.585485,2103.6,2102.7,0.58629097]
[1772700135592,0.585485,2103.4,2102.7,0.58629097]
[1772700144407,0.59386242,2103.6,2102.7,0.58629097]
[1772700144604,0.59386242,2103.6,2102.6,0.23776]
[1772700144605,0.59386242,2103.6,2102.9,1.62745937]
[1772700144805,0.45493046,2103.5,2102.8,0.58979193]
[1772700145006,0.59386242,2103.6,2102.8,0.58979193]
[1772700145206,0.45493363,2103.5,2102.8,0.58979193]
[1772700145411,0.59386242,2103.4,2102.8,0.58979193]
[1772700145915,0.59386242,2103.4,2102.7,0.58979193]
[1772700147410,0.59674466,2103.3,2102.7,0.58979193]
[1772700148413,3.97775393,2103.5,2103.0,0.55512788]
[1772700148414,0.59674466,2103.5,2103.0,0.55512788]
[1772700148607,0.59674466,2103.7,2103.2,0.55512788]
[1772700148812,1.05162763,2103.6,2103.2,0.55512788]